[Event "*** Titled Tuesday Blitz"]
[Site "Chess.com"]
[Date "2020.05.26"]
[Round "1"]
[White "mjray79"]
[Black "CHESSMASTER759"]
[Result "0-1"]
[WhiteElo "2302"]
[BlackElo "2644"]
[TimeControl "180+1"]
[EndTime "10:08:50 PDT"]
[Termination "CHESSMASTER759 won by checkmate"]

1. d4 {[%clk 0:03:00.9]} 1... Nf6 {[%clk 0:02:59.5]} 2. c4 {[%clk 0:03:01.3]}
2... g6 {[%clk 0:02:59]} 3. Nc3 {[%clk 0:03:00.6]} 3... Bg7 {[%clk 0:02:59.9]}
4. e4 {[%clk 0:03:00.8]} 4... O-O {[%clk 0:02:57.6]} 5. Nge2 {[%clk 0:03:01.2]}
5... d6 {[%clk 0:02:56.7]} 6. Ng3 {[%clk 0:03:01.6]} 6... c5 {[%clk 0:02:56.2]}
7. d5 {[%clk 0:03:01.1]} 7... e6 {[%clk 0:02:52.4]} 8. Be2 {[%clk 0:02:59.3]}
8... exd5 {[%clk 0:02:52]} 9. exd5 {[%clk 0:03:00.2]} 9... h5 {[%clk 0:02:49.4]}
10. Bg5 {[%clk 0:02:53.3]} 10... Qb6 {[%clk 0:02:46.1]} 11. Qd2 {[%clk
0:02:43.3]} 11... Nh7 {[%clk 0:02:46.1]} 12. Be3 {[%clk 0:02:42.5]} 12... h4
{[%clk 0:02:43.1]} 13. Nge4 {[%clk 0:02:42.2]} 13... f5 {[%clk 0:02:37.2]} 14.
Ng5 {[%clk 0:02:41.3]} 14... Nxg5 {[%clk 0:02:33.5]} 15. Bxg5 {[%clk 0:02:42.2]}
15... Nd7 {[%clk 0:02:34]} 16. Bxh4 {[%clk 0:02:37.2]} 16... Ne5 {[%clk
0:02:31.4]} 17. O-O {[%clk 0:02:36.4]} 17... f4 {[%clk 0:02:27.1]} 18. f3 {[%clk
0:02:24.5]} 18... Bf5 {[%clk 0:02:09]} 19. Ne4 {[%clk 0:02:21.6]} 19... Bxe4
{[%clk 0:02:05.4]} 20. fxe4 {[%clk 0:02:22.5]} 20... Bh6 {[%clk 0:02:06.1]} 21.
Qc2 {[%clk 0:02:11.4]} 21... g5 {[%clk 0:02:05.5]} 22. Be1 {[%clk 0:02:05.2]}
22... g4 {[%clk 0:02:05.1]} 23. Bc3 {[%clk 0:01:58.4]} 23... g3 {[%clk
0:01:33.8]} 24. h3 {[%clk 0:01:41.2]} 24... Rae8 {[%clk 0:01:26.6]} 25. Bf3
{[%clk 0:01:40.5]} 25... Nxc4 {[%clk 0:01:23.8]} 26. e5 {[%clk 0:01:10.4]} 26...
dxe5 {[%clk 0:01:21.1]} 27. d6 {[%clk 0:00:55.7]} 27... Nxd6 {[%clk 0:01:10.5]}
28. Qg6+ {[%clk 0:00:52.9]} 28... Bg7 {[%clk 0:01:10.1]} 29. Bd5+ {[%clk
0:00:49]} 29... Nf7 {[%clk 0:01:09.7]} 30. Qg4 {[%clk 0:00:47.2]} 30... Qf6
{[%clk 0:01:05.4]} 31. Bxb7 {[%clk 0:00:42.2]} 31... Nh6 {[%clk 0:01:02.8]} 32.
Bd5+ {[%clk 0:00:41.7]} 32... Kh8 {[%clk 0:01:02.5]} 33. Qh5 {[%clk 0:00:41.2]}
33... Qf5 {[%clk 0:00:50.3]} 34. Qe2 {[%clk 0:00:39.4]} 34... e4 {[%clk
0:00:47.4]} 35. Bxg7+ {[%clk 0:00:38.1]} 35... Kxg7 {[%clk 0:00:48.1]} 36. Rad1
{[%clk 0:00:38.3]} 36... Re7 {[%clk 0:00:41]} 37. Qc2 {[%clk 0:00:37.2]} 37...
Nf7 {[%clk 0:00:25.1]} 38. Qxc5 {[%clk 0:00:33.9]} 38... Re5 {[%clk 0:00:22.5]}
39. Qc3 {[%clk 0:00:28.6]} 39... Kh6 {[%clk 0:00:19.4]} 40. Bxf7 {[%clk
0:00:21.4]} 40... Rxf7 {[%clk 0:00:19.1]} 41. Rd6+ {[%clk 0:00:21.9]} 41... Kh7
{[%clk 0:00:16.4]} 42. Qc6 {[%clk 0:00:17.5]} 42... f3 {[%clk 0:00:16.5]} 43.
gxf3 {[%clk 0:00:16.4]} 43... Qxh3 {[%clk 0:00:13.3]} 44. Qc2 {[%clk 0:00:12.7]}
44... g2 {[%clk 0:00:11.2]} 45. Re1 {[%clk 0:00:08.4]} 45... Qh1+ {[%clk
0:00:10.3]} 46. Kf2 {[%clk 0:00:08.1]} 46... Rxf3+ {[%clk 0:00:09]} 47. Ke2
{[%clk 0:00:08.5]} 47... Qxe1+ {[%clk 0:00:09.2]} 48. Kxe1 {[%clk 0:00:08.1]}
48... g1=Q+ {[%clk 0:00:10.1]} 49. Kd2 {[%clk 0:00:08.3]} 49... Qg2+ {[%clk
0:00:10.1]} 50. Kc1 {[%clk 0:00:06.5]} 50... Rf1+ {[%clk 0:00:11]} 51. Rd1
{[%clk 0:00:05.8]} 51... Rxd1+ {[%clk 0:00:09.9]} 52. Qxd1 {[%clk 0:00:06.7]}
52... Qg5+ {[%clk 0:00:10.1]} 53. Kb1 {[%clk 0:00:05.3]} 53... e3 {[%clk
0:00:10.6]} 54. Qd7+ {[%clk 0:00:05.7]} 54... Qg7 {[%clk 0:00:10.6]} 55. Qh3+
{[%clk 0:00:05.3]} 55... Kg6 {[%clk 0:00:10.8]} 56. Qg4+ {[%clk 0:00:03.7]}
56... Kf6 {[%clk 0:00:10.7]} 57. Qf4+ {[%clk 0:00:03.5]} 57... Ke6 {[%clk
0:00:10.9]} 58. Qc4+ {[%clk 0:00:03.3]} 58... Rd5 {[%clk 0:00:11]} 59. Qc6+
{[%clk 0:00:03.3]} 59... Ke5 {[%clk 0:00:10.4]} 60. Qc3+ {[%clk 0:00:03]} 60...
Rd4 {[%clk 0:00:10.2]} 61. Qxe3+ {[%clk 0:00:02.7]} 61... Kd5 {[%clk 0:00:10.3]}
62. Qf3+ {[%clk 0:00:03]} 62... Kd6 {[%clk 0:00:09.7]} 63. Qa3+ {[%clk
0:00:01.5]} 63... Ke6 {[%clk 0:00:09.5]} 64. Qa5 {[%clk 0:00:02]} 64... Qg1+
{[%clk 0:00:08.3]} 65. Kc2 {[%clk 0:00:02.4]} 65... Qf2+ {[%clk 0:00:08.8]} 66.
Kb3 {[%clk 0:00:02.6]} 66... Qe3+ {[%clk 0:00:08.9]} 67. Kc2 {[%clk 0:00:02.2]}
67... Qd3+ {[%clk 0:00:09.3]} 68. Kc1 {[%clk 0:00:01.1]} 68... Qd1# {[%clk
0:00:01.5]} 0-1

[Event "*** Titled Tuesday Blitz"]
[Site "Chess.com"]
[Date "2020.05.26"]
[Round "1"]
[White "Lector118"]
[Black "mishikomchedlishvili"]
[Result "0-1"]
[WhiteElo "2409"]
[BlackElo "2836"]
[TimeControl "180+1"]
[EndTime "10:08:59 PDT"]
[Termination "mishikomchedlishvili won by resignation"]

1. d4 {[%clk 0:02:45.8]} 1... d6 {[%clk 0:02:59.1]} 2. e4 {[%clk 0:02:43.3]}
2... Nf6 {[%clk 0:02:58.1]} 3. Nc3 {[%clk 0:02:43.8]} 3... g6 {[%clk 0:02:58.2]}
4. Bf4 {[%clk 0:02:42.3]} 4... Bg7 {[%clk 0:02:54.9]} 5. Qd2 {[%clk 0:02:41.3]}
5... c6 {[%clk 0:02:52.5]} 6. O-O-O {[%clk 0:02:37.9]} 6... b5 {[%clk
0:02:47.9]} 7. f3 {[%clk 0:02:37.8]} 7... b4 {[%clk 0:02:44.9]} 8. Nce2 {[%clk
0:02:37.4]} 8... a5 {[%clk 0:02:44.3]} 9. Kb1 {[%clk 0:02:35.8]} 9... h5 {[%clk
0:02:41.4]} 10. Nh3 {[%clk 0:02:30.6]} 10... Bxh3 {[%clk 0:02:39.9]} 11. gxh3
{[%clk 0:02:31.5]} 11... Nbd7 {[%clk 0:02:38.4]} 12. h4 {[%clk 0:02:29.3]} 12...
Nb6 {[%clk 0:02:34.9]} 13. Nc1 {[%clk 0:02:28.5]} 13... Nfd7 {[%clk 0:02:28.1]}
14. Bh3 {[%clk 0:02:27.8]} 14... Rb8 {[%clk 0:02:20.2]} 15. Bg5 {[%clk
0:02:21.9]} 15... Qc7 {[%clk 0:02:18.1]} 16. Rhe1 {[%clk 0:02:09.7]} 16... e6
{[%clk 0:01:59.4]} 17. f4 {[%clk 0:02:03.7]} 17... c5 {[%clk 0:01:37.8]} 18.
dxc5 {[%clk 0:01:52.7]} 18... dxc5 {[%clk 0:01:20.3]} 19. e5 {[%clk 0:01:46.7]}
19... c4 {[%clk 0:01:15.1]} 20. Qd6 {[%clk 0:01:14.3]} 20... Qxd6 {[%clk
0:01:15]} 21. Rxd6 {[%clk 0:01:12]} 21... c3 {[%clk 0:01:11]} 22. b3 {[%clk
0:01:02.5]} 22... O-O {[%clk 0:01:09]} 23. Nd3 {[%clk 0:00:54.6]} 23... Rfc8
{[%clk 0:01:06.9]} 24. Rd1 {[%clk 0:00:36.1]} 24... Bf8 {[%clk 0:01:06.7]} 25.
Rd4 {[%clk 0:00:36.7]} 25... Nc5 {[%clk 0:00:58.6]} 26. Bg2 {[%clk 0:00:34.7]}
26... Ncd7 {[%clk 0:00:33.6]} 27. Be4 {[%clk 0:00:28.4]} 27... Rc7 {[%clk
0:00:33.3]} 28. Ne1 {[%clk 0:00:26.8]} 28... Bc5 {[%clk 0:00:24.4]} 29. R4d3
{[%clk 0:00:26.4]} 29... Kf8 {[%clk 0:00:22.4]} 30. Nf3 {[%clk 0:00:26.5]} 30...
Ke8 {[%clk 0:00:21.5]} 31. Nd4 {[%clk 0:00:27.2]} 31... Bxd4 {[%clk 0:00:12.9]}
32. Rxd4 {[%clk 0:00:28.1]} 32... Rbc8 {[%clk 0:00:11.4]} 33. Bf3 {[%clk
0:00:22.4]} 33... Rc5 {[%clk 0:00:10.5]} 34. Rd6 {[%clk 0:00:22.1]} 34... R5c7
{[%clk 0:00:10]} 35. R1d3 {[%clk 0:00:19.8]} 35... Rb8 {[%clk 0:00:09.9]} 36. a4
{[%clk 0:00:19.6]} 36... bxa3 {[%clk 0:00:09.3]} 37. Ka2 {[%clk 0:00:20.1]}
37... a4 {[%clk 0:00:09.6]} 38. Bc6 {[%clk 0:00:16.1]} 38... axb3+ {[%clk
0:00:08.6]} 39. cxb3 {[%clk 0:00:13.5]} 39... c2 {[%clk 0:00:08.2]} 40. Rc3
{[%clk 0:00:14]} 40... Rbc8 {[%clk 0:00:06.1]} 41. Rxc2 {[%clk 0:00:13.1]} 41...
Kf8 {[%clk 0:00:05]} 42. b4 {[%clk 0:00:12.2]} 42... Nd5 {[%clk 0:00:05.1]} 43.
Kb3 {[%clk 0:00:11.9]} 43... N7b6 {[%clk 0:00:04.7]} 44. b5 {[%clk 0:00:11.9]}
44... Ra7 {[%clk 0:00:03.5]} 45. Ra2 {[%clk 0:00:11.7]} 45... Ra4 {[%clk
0:00:03.5]} 46. Rxa3 {[%clk 0:00:12.1]} 46... Rb4+ {[%clk 0:00:03.8]} 47. Kc2
{[%clk 0:00:10.4]} 47... Rxb5 {[%clk 0:00:04]} 48. Rb3 {[%clk 0:00:09.3]} 48...
Rc5+ {[%clk 0:00:04.2]} 49. Kb2 {[%clk 0:00:08.7]} 49... R5xc6 {[%clk
0:00:04.8]} 50. Rxc6 {[%clk 0:00:07]} 50... Rxc6 {[%clk 0:00:05]} 51. Ra3 {[%clk
0:00:07.4]} 51... Ke8 {[%clk 0:00:05.4]} 52. Ra7 {[%clk 0:00:07.2]} 52... Rc7
{[%clk 0:00:05.9]} 53. Ra6 {[%clk 0:00:07.1]} 53... Nc4+ {[%clk 0:00:05.6]} 54.
Kb3 {[%clk 0:00:06.6]} 54... Kd7 {[%clk 0:00:06.3]} 55. Ra8 {[%clk 0:00:04.9]}
55... Nd2+ {[%clk 0:00:06.3]} 56. Kb2 {[%clk 0:00:05.2]} 56... Ne4 {[%clk
0:00:06.9]} 57. Rd8+ {[%clk 0:00:04.4]} 57... Kc6 {[%clk 0:00:07.2]} 58. Rf8
{[%clk 0:00:03.6]} 58... Rb7+ {[%clk 0:00:07.8]} 59. Kc2 {[%clk 0:00:03.8]}
59... Nxg5 {[%clk 0:00:08]} 60. hxg5 {[%clk 0:00:02.5]} 60... Ne3+ {[%clk
0:00:08.7]} 61. Kd3 {[%clk 0:00:01.6]} 61... Nf5 {[%clk 0:00:09.4]} 62. Ke4
{[%clk 0:00:02.5]} 62... Rd7 {[%clk 0:00:08.8]} 63. Re8 {[%clk 0:00:02.4]} 63...
Rd4+ {[%clk 0:00:08.3]} 64. Kf3 {[%clk 0:00:02.8]} 64... h4 {[%clk 0:00:08.5]}
65. Rf8 {[%clk 0:00:03]} 65... Rd7 {[%clk 0:00:09]} 66. Re8 {[%clk 0:00:02.9]}
66... Kd5 {[%clk 0:00:09.5]} 67. Rf8 {[%clk 0:00:03.6]} 67... Kd4 {[%clk
0:00:10.1]} 68. Re8 {[%clk 0:00:03.9]} 68... Kd3 {[%clk 0:00:10.7]} 69. Rf8
{[%clk 0:00:04.8]} 69... h3 {[%clk 0:00:10.5]} 70. Kg4 {[%clk 0:00:04.8]} 70...
Ke4 {[%clk 0:00:10]} 71. Rd8 {[%clk 0:00:03.9]} 71... Ne3+ {[%clk 0:00:09.7]}
72. Kg3 {[%clk 0:00:03.6]} 72... Rxd8 {[%clk 0:00:10.3]} 73. Kxh3 {[%clk
0:00:04.5]} 0-1

[Event "*** Titled Tuesday Blitz"]
[Site "Chess.com"]
[Date "2020.05.26"]
[Round "1"]
[White "Cambek64"]
[Black "Rozum_Ivan"]
[Result "0-1"]
[WhiteElo "2275"]
[BlackElo "2612"]
[TimeControl "180+1"]
[EndTime "10:09:01 PDT"]
[Termination "Rozum_Ivan won on time"]

1. d4 {[%clk 0:03:00.5]} 1... Nf6 {[%clk 0:02:27.6]} 2. Nf3 {[%clk 0:02:59.2]}
2... e6 {[%clk 0:02:27.7]} 3. Bf4 {[%clk 0:02:56.7]} 3... b6 {[%clk 0:02:27.7]}
4. e3 {[%clk 0:02:56.4]} 4... Bb7 {[%clk 0:02:26.9]} 5. Be2 {[%clk 0:02:55.2]}
5... Be7 {[%clk 0:02:25.4]} 6. h3 {[%clk 0:02:53.8]} 6... O-O {[%clk 0:02:26]}
7. O-O {[%clk 0:02:54]} 7... d5 {[%clk 0:02:17.3]} 8. Nbd2 {[%clk 0:02:51.6]}
8... Nbd7 {[%clk 0:02:17.5]} 9. c3 {[%clk 0:02:48.2]} 9... Bd6 {[%clk
0:02:14.9]} 10. Ne5 {[%clk 0:02:42.5]} 10... Qb8 {[%clk 0:01:57.8]} 11. Bd3
{[%clk 0:02:36.3]} 11... c5 {[%clk 0:01:56.2]} 12. Nxd7 {[%clk 0:02:34.4]} 12...
Nxd7 {[%clk 0:01:57.1]} 13. Bxd6 {[%clk 0:02:17.9]} 13... Qxd6 {[%clk 0:01:58]}
14. f4 {[%clk 0:02:07.4]} 14... Nf6 {[%clk 0:01:48.1]} 15. Qb1 {[%clk
0:02:00.9]} 15... Rac8 {[%clk 0:01:44.4]} 16. a3 {[%clk 0:01:50.7]} 16... a5
{[%clk 0:01:35.3]} 17. g4 {[%clk 0:01:37.9]} 17... Qc6 {[%clk 0:01:35.2]} 18.
Rc1 {[%clk 0:01:00.6]} 18... b5 {[%clk 0:01:27.9]} 19. b4 {[%clk 0:00:52.9]}
19... c4 {[%clk 0:01:09.6]} 20. Bc2 {[%clk 0:00:51.9]} 20... Ra8 {[%clk
0:01:04.8]} 21. g5 {[%clk 0:00:47.9]} 21... Ne4 {[%clk 0:01:04.3]} 22. Nxe4
{[%clk 0:00:43.8]} 22... dxe4 {[%clk 0:01:05.2]} 23. a4 {[%clk 0:00:38.9]} 23...
bxa4 {[%clk 0:00:58.3]} 24. Bxa4 {[%clk 0:00:32.3]} 24... Qd5 {[%clk 0:00:57.8]}
25. bxa5 {[%clk 0:00:30.8]} 25... Rxa5 {[%clk 0:00:56.7]} 26. Bd1 {[%clk
0:00:29.2]} 26... Rxa1 {[%clk 0:00:52]} 27. Qxa1 {[%clk 0:00:28.9]} 27... f6
{[%clk 0:00:52.7]} 28. gxf6 {[%clk 0:00:24]} 28... Rxf6 {[%clk 0:00:52.2]} 29.
Qa7 {[%clk 0:00:19.9]} 29... h6 {[%clk 0:00:44.5]} 30. Rb1 {[%clk 0:00:18.1]}
30... Bc6 {[%clk 0:00:32]} 31. Rb8+ {[%clk 0:00:17.1]} 31... Kh7 {[%clk
0:00:32.4]} 32. Qc7 {[%clk 0:00:15.1]} 32... Rg6+ {[%clk 0:00:28.9]} 33. Kh2
{[%clk 0:00:14.6]} 33... Rf6 {[%clk 0:00:19.1]} 34. Qd8 {[%clk 0:00:14.1]} 34...
Qxd8 {[%clk 0:00:17.4]} 35. Rxd8 {[%clk 0:00:13.2]} 35... Bd5 {[%clk 0:00:18.1]}
36. h4 {[%clk 0:00:12.1]} 36... Rf7 {[%clk 0:00:12.4]} 37. Rd6 {[%clk
0:00:08.1]} 37... Ra7 {[%clk 0:00:12.1]} 38. Bg4 {[%clk 0:00:08]} 38... Ra2+
{[%clk 0:00:12.2]} 39. Kg1 {[%clk 0:00:07]} 39... Rc2 {[%clk 0:00:09.4]} 40.
Bxe6 {[%clk 0:00:06.6]} 40... Bxe6 {[%clk 0:00:05.1]} 41. Rxe6 {[%clk 0:00:07]}
41... Rxc3 {[%clk 0:00:06]} 42. Rxe4 {[%clk 0:00:06.8]} 42... Rd3 {[%clk
0:00:06.7]} 43. d5 {[%clk 0:00:06.4]} 43... c3 {[%clk 0:00:05.4]} 44. Rc4 {[%clk
0:00:06.5]} 44... Rxe3 {[%clk 0:00:05.8]} 45. Kf2 {[%clk 0:00:05.8]} 45... Rd3
{[%clk 0:00:06.1]} 46. Ke2 {[%clk 0:00:05]} 46... Rd2+ {[%clk 0:00:03.4]} 47.
Ke3 {[%clk 0:00:04]} 47... Rxd5 {[%clk 0:00:03.4]} 48. Rxc3 {[%clk 0:00:03.5]}
48... Rh5 {[%clk 0:00:04]} 49. Ke4 {[%clk 0:00:03.8]} 49... Rxh4 {[%clk
0:00:04.4]} 50. Rc7 {[%clk 0:00:03.9]} 50... Rh1 {[%clk 0:00:04.7]} 51. Rc6
{[%clk 0:00:03.2]} 51... Rg1 {[%clk 0:00:04.9]} 52. Kf3 {[%clk 0:00:03]} 52...
Re1 {[%clk 0:00:04.6]} 53. Kf2 {[%clk 0:00:03.3]} 53... Re7 {[%clk 0:00:05.1]}
54. Kf3 {[%clk 0:00:03.4]} 54... Rf7 {[%clk 0:00:05.5]} 55. Kg4 {[%clk
0:00:03.6]} 55... Rf8 {[%clk 0:00:05.6]} 56. Rc7 {[%clk 0:00:03.1]} 56... Re8
{[%clk 0:00:05.6]} 57. Rc5 {[%clk 0:00:02.8]} 57... Rd8 {[%clk 0:00:05.8]} 58.
Rc6 {[%clk 0:00:02.9]} 58... Rd7 {[%clk 0:00:05.9]} 59. Re6 {[%clk 0:00:03]}
59... Rd5 {[%clk 0:00:06]} 60. Rc6 {[%clk 0:00:02.5]} 60... Kg8 {[%clk
0:00:06.3]} 61. Rc7 {[%clk 0:00:01.7]} 61... Kf8 {[%clk 0:00:06.2]} 0-1

[Event "*** Titled Tuesday Blitz"]
[Site "Chess.com"]
[Date "2020.05.26"]
[Round "1"]
[White "HrvojeZagreb"]
[Black "tsvet2005"]
[Result "1/2-1/2"]
[WhiteElo "2175"]
[BlackElo "2517"]
[TimeControl "180+1"]
[EndTime "10:09:23 PDT"]
[Termination "Game drawn - insufficient material"]

1. d4 {[%clk 0:03:00.9]} 1... d5 {[%clk 0:02:59.2]} 2. Bf4 {[%clk 0:03:00.5]}
2... c5 {[%clk 0:02:59.1]} 3. e3 {[%clk 0:02:58.5]} 3... Nc6 {[%clk 0:02:59]} 4.
Nc3 {[%clk 0:02:57.9]} 4... cxd4 {[%clk 0:02:53.4]} 5. exd4 {[%clk 0:02:57.4]}
5... Bf5 {[%clk 0:02:53.8]} 6. Bd3 {[%clk 0:02:49.1]} 6... Bxd3 {[%clk
0:02:45.9]} 7. Qxd3 {[%clk 0:02:50]} 7... e6 {[%clk 0:02:45.6]} 8. Nf3 {[%clk
0:02:33.3]} 8... Bb4 {[%clk 0:02:42.1]} 9. O-O {[%clk 0:02:30.6]} 9... Nf6
{[%clk 0:02:38.5]} 10. Ne2 {[%clk 0:02:28.2]} 10... O-O {[%clk 0:02:35.3]} 11.
c3 {[%clk 0:02:28.1]} 11... Bd6 {[%clk 0:02:35.4]} 12. Rfe1 {[%clk 0:02:20.4]}
12... Bxf4 {[%clk 0:02:28.2]} 13. Nxf4 {[%clk 0:02:19.9]} 13... Qd6 {[%clk
0:02:29.1]} 14. Ne5 {[%clk 0:02:18.4]} 14... Nd7 {[%clk 0:02:25]} 15. Nxd7
{[%clk 0:02:13.6]} 15... Qxd7 {[%clk 0:02:25.9]} 16. Re3 {[%clk 0:02:10.4]}
16... b5 {[%clk 0:02:11.3]} 17. Rh3 {[%clk 0:02:06.2]} 17... g6 {[%clk
0:01:58.9]} 18. Qg3 {[%clk 0:01:48.9]} 18... Qe7 {[%clk 0:01:54.9]} 19. Re1
{[%clk 0:01:45]} 19... Rfd8 {[%clk 0:01:44.9]} 20. Rh6 {[%clk 0:00:59.4]} 20...
Qf6 {[%clk 0:01:35.3]} 21. Nd3 {[%clk 0:00:35.5]} 21... b4 {[%clk 0:01:22.8]}
22. Qh3 {[%clk 0:00:29.7]} 22... bxc3 {[%clk 0:01:19.8]} 23. bxc3 {[%clk
0:00:25.5]} 23... Qg7 {[%clk 0:01:17.5]} 24. Ne5 {[%clk 0:00:14.6]} 24... Nxe5
{[%clk 0:01:15.8]} 25. Rxe5 {[%clk 0:00:15.5]} 25... Rab8 {[%clk 0:01:14.4]} 26.
g3 {[%clk 0:00:14.5]} 26... Rdc8 {[%clk 0:01:12]} 27. g4 {[%clk 0:00:13.6]}
27... Rxc3 {[%clk 0:01:07.1]} 28. Qxc3 {[%clk 0:00:12.6]} 28... Qxh6 {[%clk
0:01:07.5]} 29. Qc7 {[%clk 0:00:12.6]} 29... Rb1+ {[%clk 0:01:00.4]} 30. Kg2
{[%clk 0:00:12.4]} 30... Qf4 {[%clk 0:00:58.6]} 31. h3 {[%clk 0:00:09.5]} 31...
Qxd4 {[%clk 0:00:52.9]} 32. g5 {[%clk 0:00:07.6]} 32... Qf4 {[%clk 0:00:45]} 33.
Qd8+ {[%clk 0:00:05.5]} 33... Kg7 {[%clk 0:00:44.8]} 34. Re3 {[%clk 0:00:05.3]}
34... Rb7 {[%clk 0:00:24.8]} 35. Rf3 {[%clk 0:00:04.8]} 35... Qd4 {[%clk
0:00:25.3]} 36. h4 {[%clk 0:00:04.3]} 36... Qg4+ {[%clk 0:00:19.5]} 37. Rg3
{[%clk 0:00:03.7]} 37... Qe4+ {[%clk 0:00:20]} 38. Rf3 {[%clk 0:00:03.8]} 38...
Qd4 {[%clk 0:00:19.5]} 39. Kg3 {[%clk 0:00:03.1]} 39... Rb1 {[%clk 0:00:17.2]}
40. Qf6+ {[%clk 0:00:02.3]} 40... Qxf6 {[%clk 0:00:16.8]} 41. gxf6+ {[%clk
0:00:03.2]} 41... Kf8 {[%clk 0:00:16.6]} 42. Rc3 {[%clk 0:00:03.8]} 42... Rb8
{[%clk 0:00:16]} 43. Rc7 {[%clk 0:00:03.6]} 43... Rd8 {[%clk 0:00:11]} 44. Kf4
{[%clk 0:00:04.4]} 44... d4 {[%clk 0:00:10.9]} 45. Rc2 {[%clk 0:00:03.8]} 45...
Ke8 {[%clk 0:00:07.2]} 46. Rd2 {[%clk 0:00:04.7]} 46... Rd5 {[%clk 0:00:06.5]}
47. Ke4 {[%clk 0:00:04.7]} 47... d3 {[%clk 0:00:05.6]} 48. Rxd3 {[%clk
0:00:04.9]} 48... Rxd3 {[%clk 0:00:06.5]} 49. Kxd3 {[%clk 0:00:05.5]} 49... Kd7
{[%clk 0:00:07.3]} 50. Kd4 {[%clk 0:00:06.2]} 50... Kd6 {[%clk 0:00:04.3]} 51.
f4 {[%clk 0:00:06]} 51... h6 {[%clk 0:00:03.8]} 52. Ke4 {[%clk 0:00:04.6]} 52...
Kc5 {[%clk 0:00:02.8]} 53. Ke5 {[%clk 0:00:04.8]} 53... a6 {[%clk 0:00:03.1]}
54. a3 {[%clk 0:00:04.6]} 54... a5 {[%clk 0:00:02.5]} 55. a4 {[%clk 0:00:04.3]}
55... h5 {[%clk 0:00:03.1]} 56. Ke4 {[%clk 0:00:03.8]} 56... Kb4 {[%clk
0:00:03.3]} 57. Ke5 {[%clk 0:00:04.2]} 57... Kc5 {[%clk 0:00:03.5]} 58. Ke4
{[%clk 0:00:04.4]} 58... Kb4 {[%clk 0:00:04]} 59. Ke5 {[%clk 0:00:04.8]} 59...
Kxa4 {[%clk 0:00:04.6]} 60. Kd6 {[%clk 0:00:05.2]} 60... Kb4 {[%clk 0:00:05.2]}
61. Ke7 {[%clk 0:00:06.1]} 61... a4 {[%clk 0:00:06.1]} 62. Kxf7 {[%clk
0:00:06.9]} 62... a3 {[%clk 0:00:07]} 63. Kg7 {[%clk 0:00:07.2]} 63... a2 {[%clk
0:00:07.9]} 64. f7 {[%clk 0:00:07.4]} 64... a1=Q+ {[%clk 0:00:08.8]} 65. Kg8
{[%clk 0:00:07.8]} 65... Kc4 {[%clk 0:00:04.3]} 66. f8=Q {[%clk 0:00:07.5]}
66... Kd5 {[%clk 0:00:04.9]} 67. Qd8+ {[%clk 0:00:06]} 67... Ke4 {[%clk
0:00:05]} 68. Qg5 {[%clk 0:00:05.7]} 68... Qa8+ {[%clk 0:00:01.7]} 69. Kh7
{[%clk 0:00:06]} 69... Qe8 {[%clk 0:00:01.5]} 70. Qe5+ {[%clk 0:00:04.7]} 70...
Kf3 {[%clk 0:00:01.6]} 71. Qg5 {[%clk 0:00:03.4]} 71... Qf7+ {[%clk 0:00:01.8]}
72. Kh6 {[%clk 0:00:03.2]} 72... Qxf4 {[%clk 0:00:02.7]} 73. Kxg6 {[%clk
0:00:02.8]} 73... Qe4+ {[%clk 0:00:02.3]} 74. Kxh5 {[%clk 0:00:02.4]} 74... e5
{[%clk 0:00:02.7]} 75. Qf6+ {[%clk 0:00:01.9]} 75... Ke3 {[%clk 0:00:02.7]} 76.
Kg5 {[%clk 0:00:02.3]} 76... Qf4+ {[%clk 0:00:02.7]} 77. Kg6 {[%clk 0:00:02.4]}
77... Qxf6+ {[%clk 0:00:02.5]} 78. Kxf6 {[%clk 0:00:02.6]} 78... Kf4 {[%clk
0:00:03.4]} 79. h5 {[%clk 0:00:03.5]} 79... e4 {[%clk 0:00:04.3]} 80. h6 {[%clk
0:00:04.4]} 80... e3 {[%clk 0:00:05.2]} 81. h7 {[%clk 0:00:05.3]} 81... e2
{[%clk 0:00:06.1]} 82. h8=Q {[%clk 0:00:06.2]} 82... e1=Q {[%clk 0:00:07]} 83.
Qh6+ {[%clk 0:00:06.5]} 83... Kf3 {[%clk 0:00:07.4]} 84. Qh5+ {[%clk 0:00:06.6]}
84... Kf2 {[%clk 0:00:07.8]} 85. Qh4+ {[%clk 0:00:06.9]} 85... Kf1 {[%clk
0:00:08.4]} 86. Qxe1+ {[%clk 0:00:07.2]} 86... Kxe1 {[%clk 0:00:09.3]} 1/2-1/2